Cogmind - Beta 16.1 @@@ ROGUE MODE // 2026.03.31 @ 18:17:12 Player: Gatamar Result: Destroyed by I2-1JQ(R) with Subdweller Machine Gun Performance ------------- Evolutions (0) 0 Regions Visited (2) 400 Robots Destroyed (27) 135 Value Destroyed (531) 531 Prototype IDs (0) 0 Alien Tech Used (0) 0 Bonus (0) 0 TOTAL SCORE: 1066 Bonus ------- None Cogmind --------- Core Integrity 0/250 Matter 203/300 Energy 100/100 System Corruption 1% Temperature Cool (0) Movement Treading (480) Ox4 Location -10/Subcaves Parts ------- > --- POWER (1) -------- (None) > --- PROPULSION (2) --- Light Treads > --- UTILITY (2) ------ Huge Storage Unit > --- WEAPON (2) ------- Light Assault Rifle > --- INVENTORY (25) --- Ion Engine Aluminum Leg Aluminum Leg Small Storage Unit High-capacity Matter Pod (84) Transport Network Coupler Medium Laser Grenade Launcher Hammer Peak State ------------ > --- POWER ------------ Ion Engine > --- PROPULSION ------- Light Treads Light Treads > --- UTILITY ---------- Huge Storage Unit Makeshift Terrain Scanner > --- WEAPON ----------- Light Cannon Light Cannon > --- INVENTORY -------- Ion Engine Light Treads Aluminum Leg Aluminum Leg Small Storage Unit High-capacity Matter Pod Transport Network Coupler Medium Laser Light Assault Rifle Grenade Launcher Hammer [Rating: 14] Favorites ----------- Power Ion Engine Engine Ion Engine Propulsion Light Treads Treads Light Treads Leg Aluminum Leg Utility Huge Storage Unit Device Makeshift Terrain Scanner Storage Huge Storage Unit Weapon Light Cannon Energy Gun Medium Laser Ballistic Gun Light Assault Rifle Ballistic Cannon Light Cannon Launcher Grenade Launcher Build | -11 -10 -10 ------- Run | Yrd Mat Sub Slots Evolved . | . . . Power . | . . . Propulsion . | . . . Utility . | . . . Weapon . | . . . Parts Attached 14 | 6 5 3 Power 1 | 1 . . Engine 1 | 1 . . Core . | . . . Reactor . | . . . Propulsion 4 | 2 1 1 Treads 3 | 2 1 . Leg 1 | . . 1 Wheel . | . . . Hover . | . . . Flight . | . . . Utility 3 | 1 1 1 Device 1 | . . 1 Storage 2 | 1 1 . Processor . | . . . Hackware . | . . . Protection . | . . . Artifact . | . . . Weapon 6 | 2 3 1 Energy Gun 1 | 1 . . Energy Cannon . | . . . Ballistic Gun 1 | 1 . . Ballistic Cannon 3 | . 3 . Launcher 1 | . . 1 Special Weapon . | . . . Impact Weapon . | . . . Slashing Weapon . | . . . Piercing Weapon . | . . . Special Melee Weapon . | . . . Unidentified Prototypes . | . . . Parts Lost 6 | . . 6 Power 1 | . . 1 Propulsion 2 | . . 2 Utility 1 | . . 1 Weapon 2 | . . 2 Highest Loss Streak 4 | . . 4 To Critical Strikes 1 | . . 1 Average Backups 9 | 1 9 9 Power . | . 1 1 Propulsion 2 | 1 2 2 Utility 2 | . 2 3 Weapon 3 | . 3 3 Tool/Special . | . . . Unused Backups 5 | . . 5 Power 1 | . . 1 Propulsion 1 | . . 1 Utility 2 | . . 2 Weapon 1 | . . 1 Tool/Special . | . . . Average Slot Usage (%) 82 | . 85 79 Engine 11 | . 14 6 Treads 27 | . 28 26 Device 1 | . . 2 Storage 14 | . 14 14 Energy Gun 1 | . 2 . Ballistic Gun 4 | . 2 6 Ballistic Cannon 21 | . 22 20 Peak Build Rating 14 | 6 7 14 Average Rating 6 | 4 6 7 On Entrance 4 | . 6 7 Avg Prop Armor Cover (%) . | . . . Naked Turns . | . . . Heaviest Build 92 | 13 91 92 Greatest Support 40 | 40 40 40 Greatest Overweight (x) 4 | 1 2 4 Average Overweight (x) 1 | . 1 2 Largest Inventory Capacity 25 | 8 25 25 Average Capacity 23 | 7 23 25 Most Carried 12 | 3 12 11 Average Carried 9 | 1 9 9 Final Capacity 25 | 8 25 25 Final Carried 11 | 3 11 9 Class Distribution -------------------- 100% | Mutant Dominant Class ---------------- Mutant | -10/Materials Mutant | -10/Subcaves Resources | -11 -10 -10 ----------- Run | Yrd Mat Sub Matter Collected 913 | 204 434 275 Remotely . | . . . Salvage Created 655 | . 445 210 Parts 35 | . 20 15 Haulers Intercepted 2 | . 2 . Recyclers Shooed . | . . . Parts Field Recycled . | . . . Retrieved Matter . | . . . Parts Self-Destructed 22 | . . 22 Prevented . | . . . Parts Restored . | . . . Kills | -11 -10 -10 ------- Run | Yrd Mat Sub Combat Hostiles Destroyed 18 | . 7 11 Cannons 15 | . 7 8 AOE 3 | . . 3 Classes Destroyed 8 | . 6 2 Worker 1 | . 1 . Hauler 2 | . 2 . Recycler 3 | . 3 . Turret 2 | . . 2 Watcher 1 | . 1 . Swarmer 10 | . 3 7 Grunt 4 | . 4 . Subdweller 4 | . . 4 Best Kill Streak 7 | . 7 6 Combat Bots Only 4 | . 3 4 Max Kills in Single Turn 3 | . 2 3 Gunslinging . | . . . Exploded 3 | . . 3 Melee . | . . . Uniques/NPCs Destroyed . | . . . Combat | -11 -10 -10 -------- Run | Yrd Mat Sub Hostile Shots Fired 145 | . 46 99 Missed 44 | . 14 30 Hits 101 | . 32 69 Projectile 101 | . 32 69 Critical Strikes 3 | . 2 1 Damage Taken 1220 | . 424 796 Core 251 | . 93 158 Absorbed by Shields . | . . . Core Remaining (%) 100 | 100 . . Volleys Fired 70 | . 41 29 Largest 2 | . 2 2 Hottest 60 | . 60 60 Shots Fired 138 | . 82 56 Gun 11 | . . 11 Cannon 120 | . 82 38 Launcher 7 | . . 7 Special . | . . . Kinetic 131 | . 82 49 Thermal . | . . . Explosive 7 | . . 7 Electromagnetic . | . . . Robot Hit Streak 13 | . 13 5 Robot Miss Streak 5 | . 4 5 Penetration Max . | . . . Secondary Targets . | . . . Shots Hit Robots 61 | . 42 19 Core Hits 39 | . 16 23 Critical Kills . | . . . Critical Parts Destroyed . | . . . Critical Strikes . | . . . Melee Attacks . | . . . Impact . | . . . Slashing . | . . . Piercing . | . . . Sneak Attacks . | . . . Combat Hostiles . | . . . Follow-up Attacks . | . . . Damage Inflicted 1417 | . 775 642 Guns 37 | . . 37 Cannons 1080 | . 769 311 Explosions 294 | . . 294 Melee . | . . . Ramming 6 | . 6 . Kinetic 1117 | . 769 348 Thermal . | . . . Explosive 294 | . . 294 Electromagnetic . | . . . Impact . | . . . Slashing . | . . . Piercing . | . . . Highest Corruption 1 | . 1 1 Average Corruption 1 | . 1 1 Corruption Purged . | . . . Corruption Blocked . | . . . Effects 12 | . 9 3 Message Errors 2 | . 2 . Matter Fused 5 | . 3 2 Heat Flow Errors 1 | . 1 . Energy Discharges 1 | . 1 . Parts Fused 1 | . 1 . Data Loss (minor) 1 | . 1 . Misfires 1 | . . 1 Overload Shots . | . . . Overflow Damage 12 | . 11 1 Projectiles 11 | . 11 . Explosions 1 | . . 1 Melee . | . . . Knockbacks 15 | . 14 1 Impact . | . . . Kinetic 11 | . 10 1 Secondary 4 | . 4 . Self-Inflicted Damage . | . . . Shots . | . . . Rammed 2 | . 2 . Targets Rammed 2 | . 2 . Kicked . | . . . Crushed . | . . . Highest Temperature 192 | . 192 . Average Temperature 57 | . 57 . Received Heat Transfer 318 | . 180 138 Siege Activations . | . . . Martial Activations . | . . . Shielding Activations . | . . . Robots Disrupted . | . . . Combat Hostiles . | . . . Robots Corrupted . | . . . Combat Hostiles . | . . . Parts Fried . | . . . Impact Corruptions . | . . . Robots Melted . | . . . Combat Hostiles . | . . . Parts Melted 1 | . . 1 Heat Transferred . | . . . Parts Sabotaged . | . . . Parts Stolen . | . . . Parts Stripped . | . . . Power Chain Reactions . | . . . Alert | -11 -10 -10 ------- Run | Yrd Mat Sub Maximum Alert Level . | . . . Low Security (%) 100 | 100 100 . Level 1 . | . . . Level 2 . | . . . Level 3 . | . . . Level 4 . | . . . Level 5 . | . . . High Security . | . . . Max Security . | . . . Peak Influence 75 | . 75 . Initial . | . . . Average 17 | . 18 . Influence Increases 450 | . 230 220 Destroy 0b10 Robot/C 320 | . 140 180 Destroy 0b10 Robot/NC 35 | . 35 . Destroy Leader 46 | . 36 10 Disable Machine 15 | . 15 . Destroy Structure 4 | . 4 . Lose Combat Pursuer 30 | . . 30 Influence Decreases 450 | . 184 266 Entered New Map 23 | . . 23 Time Decay 387 | . 184 203 Lost Part 40 | . . 40 Squads Dispatched . | . . . Investigation . | . . . Extermination . | . . . Reinforcement . | . . . Assault . | . . . Garrison . | . . . Intercept . | . . . Searches Triggered . | . . . Construction Impeded . | . . . Haulers Reinforced . | . . . Active Scanning Responses . | . . . Cargo Convoy Interrupts . | . . . Stealth | -11 -10 -10 --------- Run | Yrd Mat Sub Distress Signals 2 | . 2 . Communications Jammed . | . . . Distress Signals . | . . . Times Spotted 30 | . 16 14 Peak Tracking Total 6 | . 6 4 Tactical Retreats 1 | . . 1 Traps | -11 -10 -10 ------- Run | Yrd Mat Sub Traps Triggered 2 | . 2 . Indirectly . | . . . Trap Hack Attempts . | . . . Triggered . | . . . Disarmed . | . . . Reprogrammed . | . . . Reused . | . . . Traps Extracted . | . . . Installed . | . . . Triggered . | . . . Machines | -11 -10 -10 ---------- Run | Yrd Mat Sub Machines Disabled 4 | . 1 3 Max in Single Turn 1 | . 1 1 Machines Repaired . | . . . Machines Dismantled . | . . . Machines Sabotaged . | . . . Overloaded Fab Kills . | . . . Hacking | -11 -10 -10 --------- Run | Yrd Mat Sub Machines Accessed 1 | . 1 . Terminals . | . . . Fabricators . | . . . Repair Stations . | . . . Recycling Units 1 | . 1 . Scanalyzers . | . . . Garrison Access . | . . . Total Hacks 1 | . 1 . Successful 1 | . 1 . Failed . | . . . Catastrophic . | . . . Database Lockouts . | . . . Manual . | . . . Terminals . | . . . Fabricators . | . . . Repair Stations . | . . . Recycling Units 1 | . 1 . Scanalyzers . | . . . Garrison Access . | . . . Terminal Hacks . | . . . Fabricator Hacks . | . . . Repair Station Hacks . | . . . Recycling Unit Hacks 1 | . 1 . Report Inventory 1 | . 1 . Scanalyzer . | . . . Garrison Access Hacks . | . . . Unauthorized Hacks . | . . . Terminals . | . . . Fabricators . | . . . Repair Stations . | . . . Recycling Units . | . . . Scanalyzers . | . . . Garrison Access . | . . . Data Cores Recovered . | . . . Used . | . . . Hacking Detections . | . . . Full Trace Events . | . . . Feedback Events . | . . . Feedback Blocked . | . . . Robot Schematics Acquired . | . . . Robots Built . | . . . Authchips . | . . . Time . | . . . Total Robot Build Rating . | . . . Part Schematics Acquired . | . . . Parts Built . | . . . Authchips . | . . . Time . | . . . Total Part Build Rating . | . . . Part Studies Acquired . | . . . Parts Repaired . | . . . Time . | . . . Parts Recycled . | . . . Recycled Matter . | . . . Retrieved Matter . | . . . Retrieved Components . | . . . Parts Scanalyzed . | . . . Part Schematics Acquired . | . . . Parts Damaged . | . . . Bothacking | -11 -10 -10 ------------ Run | Yrd Mat Sub Used RIF Installer . | . . . Robots Hacked . | . . . Non-combat . | . . . Combat . | . . . Robot Hacks Applied . | . . . Relay Couplers Released . | . . . Fabnet Peak Effective % . | . . . Robots Rewired . | . . . Allies Hacked . | . . . Hacks Repelled . | . . . Allies | -11 -10 -10 -------- Run | Yrd Mat Sub Total Allies . | . . . Largest Group . | . . . Highest-Rated Group . | . . . Highest-Rated Ally . | . . . Total Orders . | . . . Ally Attacks . | . . . Total Damage . | . . . Kills . | . . . Allies Corrupted . | . . . Allies Melted . | . . . Intel | -11 -10 -10 ------- Run | Yrd Mat Sub Active Infowar (turns) 132 | . . 132 Terrain 132 | . . 132 Robot Analysis Total . | . . . Derelict Logs Recovered . | . . . Drone Launches . | . . . Drone Recoveries . | . . . Exploration | -11 -10 -10 ------------- Run | Yrd Mat Sub Turns Passed 1572 | 75 902 595 Spaces Moved 454 | 44 257 153 Core 9 | 9 . . Treads 445 | 35 257 153 Legs . | . . . Wheels . | . . . Hover . | . . . Flight . | . . . Fastest Speed 50 | 50 160 320 Average Speed 283 | 145 282 324 Slowest Speed 480 | 160 320 480 Overloaded Moves . | . . . Propulsion Burnouts . | . . . Robots Hopped . | . . . Potential Cave-ins . | . . . Cave-ins Triggered . | . . . Exploration Rate (%) 18 | 4 42 9 Regions Visited 2 Branch Regions 1 Pre-discovered Areas 1 | . . 1 Known Exits Taken . | . . . Unknown Exits Taken 2 | 1 1 . Scrap Searched . | . . . Spaces Dug . | . . . Terrain Destroyed 7 | . . 7 Melee . | . . . Projectile . | . . . AOE 7 | . . 7 Terrain Rammed . | . . . Walls Destroyed . | . . . Machines Disabled . | . . . Actions | -11 -10 -10 --------- Run | Yrd Mat Sub Total 595 | 52 346 197 Wait 42 | . 33 9 Move 452 | 43 256 153 Hop . | . . . Pick Up 11 | 3 8 . Fast Attach 8 | 6 1 1 Attach 2 | . . 2 Detach 1 | . 1 . Swap 7 | . 4 3 Drop . | . . . Fire 70 | . 41 29 Melee . | . . . Ram . | . . . Kick . | . . . Crush 2 | . 2 . Escape Stasis . | . . . Rewire . | . . . Trap . | . . . Miscellaneous . | . . . Route ------- -11/Scrapyard -10/Materials (discovered 2 exits: [*Mat] / [*Sub]) -10/Subcaves (discovered 1 exit: [*Rec]) History --------- Turn | Location | Event 10 | -11/Scrapyard | Discovered new exit (range 16) 76 | -11/Scrapyard | Entered Materials 308 | -10/Materials | Build established: Mutant 394 | -10/Materials | Discovered new exit (range 16) 956 | -10/Materials | Discovered new exit (range 8) 978 | -10/Materials | Entered Subcaves 979 | -10/Subcaves | Approached by a straggling Scientist 1015 | -10/Subcaves | Learned location of Zion (-7) 1015 | -10/Subcaves | Met a Zionite searching for "candidates" 1247 | -10/Subcaves | Core integrity fell below 50% 1285 | -10/Subcaves | Discovered new exit (range 13) 1297 | -10/Subcaves | Lost 4 parts (1p1n1u1w) 1415 | -10/Subcaves | Core integrity fell below 20% 1573 | -10/Subcaves | Destroyed by I2-1JQ(R) with Subdweller Machine Gun Last Messages --------------- 9S-4GK(c): "I think it's somewhere east of here" 01399_ The unstable cave ceiling collapses. 01432_ Sub. Optics melted. 01432_ 0S-81G(R) destroyed. 9S-4GK(c): "I think it's somewhere east of here" 01470_ Acquired 24 matter. 01474_ Acquired 6 matter. 01480_ Acquired 2 matter. 9S-4GK(c): "I think it's somewhere east of here" 01518_ SX-MMQ(R) destroyed. 01529_ Acquired 44 matter. 01536_ Acquired 2 matter. 9S-4GK(c): "I think it's somewhere east of here" 01546_ Critical hit (Destroy). 01546_ Lgt. Treads destroyed. 01568_ LV-4LC(R) affixes Scrap Shield Fragment to Scrap Shield. 01569_ LV-4LC(R) destroyed. 01571_ Lgt. Cannon destroyed. Map ----- +----------------------------------------------------+ | ???????????????????????????##????????????????????? | | ???????????????????????????# #??####?????????????? | | ???????????????????????????# ### ###???????????? | | ???????????????????????????# ## ##??????????? | | ??????????????????????????## #??????????? | | ??????????????????????????# #??????????? | | ??????????????????????????#### #??????????? | | ?????????????????????????????## ##??????????? | | ??????????????????????????????# #???????????? | | ??????????????????????????????# ##???????????? | | ????????????????????########?## ####????????????? | | ????????????????????#" " "### #???????????????? | | ????????????????????# ## ###?????????????? | | ????????????????????# #?????????????? | | ???????????????????##" #?????????????? | | ???????????????????#< #???????#?????? | | ???????????????#???## #?????#???????? | | ????????????????????# #??????#??????? | | ????????????????????# #?????????????? | | ????????????????????#""" #??#??????????? | | ????????????????????######## ##???#?????????? | | ??????????????????????????# ###?????????????? | | ??????????????????????????# | ##????????????#??? | | ????????????????????##????## | #?#?????????????#? | | ???????????????##??######### #??#??????##?????? | | ??????????????## ## #@ # ##??????#???#?#### | | ??????????????# " [R% ###??????#??## # | | ?????????????# ### #=# # ##????????# | | ?????????????# #?########### #?????#??## | | ?????????????# #?????"?#????# ###????????### | | ???????????? ??"???""""##### #???????#????## | | ?????????? ???????""" ####??????????# | | ?????????### ? ????? "" " "" ## #######????# | | ???????????# ????????# "" ### "" &# ## ####### | | ???????????###?????????"" #???## ! # | | ??????????????????????? ??????# & # | | ????????????????????? ??####### # # # | | ????????????????????##??? ??# #### | | ?????????????????????##? ???# ## #?# | | ?????????????????????#????? ## ##### ## | | ?????????????????????????????# ## #???## # | | ?????????????????????????????#### #????? ### | | ????????????????????????????????# * #?????# #### | | ?????????????????????? ?? ???? #?##???#### | | ???????????????????#?????????? ???????# | | ????????????????????????????? ## ??#??### | | ??????????????????????????? ##?### #??????## # | | ??????????????????????????##??????#####?#?????#### | | ???????????????????????????????????????????????#?? | | ??????????????????????#??????????????????????????? | +----------------------------------------------------+ Best States ------------- Heat Dissipation 25 Energy Generation 10 Energy Capacity 250 Matter Stores 300 Matter Capacity 300 Sight Range 16 Terrain Scan Range 18 Terrain Scan Density 10 Evasion (%) 40 Recoil Reduction 2 Item Schematics ----------------- None Robot Schematics ------------------ None Fabricated ------------ Nothing Repaired ---------- Nothing Studied --------- None Alien Tech Used ----------------- None Achievements -------------- None Challenges ------------ None Game ------ Seed TitaniumLongswordSpoofer Manual? 0 Play Time 00:10:42 Cumulative 30.7 hours Start 2026.03.31 @ 18:08:33 End 2026.03.31 @ 18:17:12 Sessions 1 Manual Loads 0 Difficulty Rogue Special Mode None Game No. 79 Rogue 79 Adventurer 0 Explorer 0 Win Type - Total 0 Types 0/0/0/0/0/0/0/0/0/0 Lore% 26 Gallery% 28 Achievement% 21 Wizard Run 0 Options --------- Layout 2 ASCII 0 Keyboard 0 Movement Mouse Keybinds 0 Fullscreen 1 Font 32/SmallcapsGlow Map View 50x44 Zoom Use 0% Tactical HUD 1 Map Filters NONE Filters NONE Steam 1 RUN: 72e61c8f-37a8-4aac-8de3-de6a1b624445